Cogmind - Beta 14 @@@ ROGUE MODE // 2024.11.05 @ 03:31:40 Player: laeb2 Result: Smashed by cave-in Performance ------------- Evolutions (0) 0 Regions Visited (2) 400 Robots Destroyed (18) 90 Value Destroyed (280) 280 Prototype IDs (0) 0 Alien Tech Used (0) 0 Bonus (0) 0 TOTAL SCORE: 770 Bonus ------- None Cogmind --------- Core Integrity 0/250 Matter 299/300 Energy 100/100 System Corruption 6% Temperature Cool (0) Movement Walking (140) Location -10/Subcaves Parts ------- > --- POWER (1) -------- (None) > --- PROPULSION (2) --- Makeshift Leg > --- UTILITY (2) ------ Medium Storage Unit > --- WEAPON (2) ------- Light Assault Rifle Mining Laser > --- INVENTORY (10) --- Ion Engine Spiked Treads Makeshift Leg Subdweller Optics Signal Interpreter Hacking Suite Assault Rifle Light Assault Rifle Grenade Launcher Peak State ------------ > --- POWER ------------ Makeshift Power Source > --- PROPULSION ------- Makeshift Leg Makeshift Leg > --- UTILITY ---------- Medium Storage Unit Seismic Detector > --- WEAPON ----------- Riot Gun Assault Rifle > --- INVENTORY -------- Ion Engine Spiked Treads Makeshift Leg Signal Interpreter Hacking Suite Light Assault Rifle Light Assault Rifle Grenade Launcher Datajack Mining Laser [Rating: 19] Favorites ----------- Power Light Ion Engine Engine Light Ion Engine Propulsion Aluminum Leg Leg Aluminum Leg Utility Medium Storage Unit Device Seismic Detector Storage Medium Storage Unit Processor Signal Interpreter Weapon Light Assault Rifle Energy Gun Riot Gun Ballistic Gun Light Assault Rifle Special Weapon Mining Laser Build | -11 -10 -10 ------- Run | Yrd Mat Sub Slots Evolved . | . . . Power . | . . . Propulsion . | . . . Utility . | . . . Weapon . | . . . Parts Attached 21 | 6 5 10 Power 3 | . 2 1 Engine 3 | . 2 1 Core . | . . . Reactor . | . . . Propulsion 4 | 2 . 2 Treads . | . . . Leg 4 | 2 . 2 Wheel . | . . . Hover . | . . . Flight . | . . . Utility 6 | 2 2 2 Device 3 | 1 1 1 Storage 2 | 1 1 . Processor 1 | . . 1 Hackware . | . . . Protection . | . . . Artifact . | . . . Weapon 8 | 2 1 5 Energy Gun 1 | . . 1 Energy Cannon . | . . . Ballistic Gun 5 | 2 1 2 Ballistic Cannon . | . . . Launcher . | . . . Special Weapon 2 | . . 2 Impact Weapon . | . . . Slashing Weapon . | . . . Piercing Weapon . | . . . Special Melee Weapon . | . . . Unidentified Prototypes . | . . . Parts Lost 5 | . 1 4 Power 1 | . . 1 Propulsion 1 | . . 1 Utility 2 | . 1 1 Weapon 1 | . . 1 Highest Loss Streak 2 | . 1 2 To Critical Strikes . | . . . Average Slot Usage (%) 95 | . 92 99 Engine 14 | . 14 14 Leg 28 | . 28 28 Device 10 | . 7 13 Storage 14 | . 14 14 Energy Gun 1 | . . 4 Ballistic Gun 24 | . 28 21 Special Weapon 1 | . . 2 Peak Build Rating 19 | 6 8 19 Average Rating 10 | 3 7 14 On Entrance 4 | . 6 8 Naked Turns . | . . . Heaviest Build 20 | 8 17 20 Greatest Support 40 | 20 20 40 Greatest Overweight (x) . | . . . Average Overweight (x) . | . . . Largest Inventory Capacity 10 | 8 10 10 Average Capacity 9 | 7 9 10 Most Carried 10 | 7 10 10 Average Carried 9 | 4 9 9 Final Capacity 10 | 8 10 10 Final Carried 10 | 5 10 9 Class Distribution -------------------- 70% | Mutant 29% | Scavenger-Mutant Dominant Class ---------------- Mutant | -10/Materials Scavenger-Mutant | -10/Subcaves Resources | -11 -10 -10 ----------- Run | Yrd Mat Sub Matter Collected 590 | 231 191 168 Remotely . | . . . Salvage Created 558 | 89 349 120 Parts 41 | 5 27 9 Haulers Intercepted 2 | . 2 . Recyclers Shooed 1 | . 1 . Parts Field Recycled . | . . . Retrieved Matter . | . . . Parts Self-Destructed 10 | . . 10 Prevented . | . . . Kills | -11 -10 -10 ------- Run | Yrd Mat Sub Combat Hostiles Destroyed 9 | . 5 4 Guns 9 | . 5 4 Classes Destroyed 8 | 2 5 1 Tunneler 3 | 1 2 . Hauler 2 | . 2 . Recycler 2 | 1 1 . Operator 1 | . 1 . Watcher 1 | . 1 . Swarmer 5 | . 3 2 Grunt 2 | . 2 . Subdweller 2 | . . 2 Best Kill Streak 3 | 2 3 2 Combat Bots Only 3 | . 3 2 Max Kills in Single Turn 1 | 1 1 1 Gunslinging . | . . . Exploded . | . . . Melee . | . . . Uniques/NPCs Destroyed . | . . . Combat | -11 -10 -10 -------- Run | Yrd Mat Sub Hostile Shots Fired 80 | . 50 30 Missed 23 | . 16 7 Damage Taken 1041 | . 383 658 Core 286 | . 128 158 Absorbed by Shields . | . . . Core Remaining (%) 100 | 100 . . Volleys Fired 109 | 5 65 39 Largest 2 | 2 2 2 Hottest 150 | 40 40 150 Shots Fired 198 | 10 130 58 Gun 177 | 10 130 37 Cannon . | . . . Launcher . | . . . Special 21 | . . 21 Kinetic 173 | 10 130 33 Thermal 21 | . . 21 Explosive . | . . . Electromagnetic 4 | . . 4 Robot Hit Streak 18 | 2 7 18 Robot Miss Streak 5 | 1 5 4 Penetration Max . | . . . Secondary Targets 2 | . 1 1 Max Gunslinging Chain 1 | . 1 1 Shots Hit Robots 103 | 6 70 27 Core Hits 38 | 3 26 9 Critical Kills 2 | . 2 . Critical Parts Destroyed 1 | . 1 . Critical Strikes 3 | . 3 . Destroy 3 | . 3 . Melee Attacks . | . . . Impact . | . . . Slashing . | . . . Piercing . | . . . Sneak Attacks . | . . . Combat Hostiles . | . . . Follow-up Attacks . | . . . Damage Inflicted 952 | 55 577 320 Guns 951 | 55 576 320 Cannons . | . . . Explosions . | . . . Melee . | . . . Ramming 1 | . 1 . Kinetic 892 | 55 576 261 Thermal . | . . . Explosive . | . . . Electromagnetic 59 | . . 59 Impact . | . . . Slashing . | . . . Piercing . | . . . Highest Corruption . | . . . Average Corruption . | . . . Corruption Purged . | . . . Corruption Blocked . | . . . Overload Shots . | . . . Overflow Damage . | . . . Projectiles . | . . . Explosions . | . . . Melee . | . . . Knockbacks . | . . . Impact . | . . . Kinetic . | . . . Secondary . | . . . Self-Inflicted Damage . | . . . Shots . | . . . Rammed . | . . . Targets Rammed 1 | . 1 . Kicked 1 | . 1 . Crushed . | . . . Highest Temperature 34 | . 34 . Average Temperature 13 | . 13 . Received Heat Transfer 225 | . 165 60 Siege Activations . | . . . Robots Corrupted . | . . . Combat Hostiles . | . . . Parts Fried . | . . . Impact Corruptions . | . . . Robots Melted . | . . . Combat Hostiles . | . . . Parts Melted . | . . . Heat Transferred . | . . . Parts Sabotaged . | . . . Parts Stolen . | . . . Parts Stripped . | . . . Power Chain Reactions . | . . . Alert | -11 -10 -10 ------- Run | Yrd Mat Sub Peak Influence 127 | 10 127 . Initial 6 | . 6 . Average 43 | 2 46 . Maximum Alert Level . | . . . Low Security (%) 100 | 100 100 . Level 1 . | . . . Level 2 . | . . . Level 3 . | . . . Level 4 . | . . . Level 5 . | . . . High Security . | . . . Max Security . | . . . Squads Dispatched . | . . . Investigation . | . . . Extermination . | . . . Reinforcement . | . . . Assault . | . . . Garrison . | . . . Intercept . | . . . Searches Triggered . | . . . Construction Impeded . | . . . Haulers Reinforced . | . . . Active Scanning Responses . | . . . Cargo Convoy Interrupts . | . . . Stealth | -11 -10 -10 --------- Run | Yrd Mat Sub Distress Signals . | . . . Communications Jammed . | . . . Distress Signals . | . . . Times Spotted 21 | . 16 5 Peak Tracking Total 3 | . 3 3 Tactical Retreats . | . . . Traps | -11 -10 -10 ------- Run | Yrd Mat Sub Traps Triggered . | . . . Indirectly . | . . . Trap Hack Attempts . | . . . Triggered . | . . . Disarmed . | . . . Reprogrammed . | . . . Reused . | . . . Traps Extracted . | . . . Installed . | . . . Triggered . | . . . Machines | -11 -10 -10 ---------- Run | Yrd Mat Sub Machines Disabled . | . . . Max in Single Turn . | . . . Machines Repaired . | . . . Machines Dismantled . | . . . Machines Sabotaged . | . . . Overloaded Fab Kills . | . . . Hacking | -11 -10 -10 --------- Run | Yrd Mat Sub Machines Accessed 3 | . 3 . Terminals 2 | . 2 . Fabricators . | . . . Repair Stations . | . . . Recycling Units 1 | . 1 . Scanalyzers . | . . . Garrison Access . | . . . Total Hacks 9 | . 9 . Successful 3 | . 3 . Failed 6 | . 6 . Catastrophic . | . . . Database Lockouts . | . . . Manual 6 | . 6 . Terminals 6 | . 6 . Fabricators . | . . . Repair Stations . | . . . Recycling Units 3 | . 3 . Scanalyzers . | . . . Garrison Access . | . . . Terminal Hacks 2 | . 2 . Robot Analysis 2 | . 2 . Fabricator Hacks . | . . . Repair Station Hacks . | . . . Recycling Unit Hacks 1 | . 1 . Retrieve Components 1 | . 1 . Scanalyzer . | . . . Garrison Access Hacks . | . . . Unauthorized Hacks . | . . . Terminals . | . . . Fabricators . | . . . Repair Stations . | . . . Recycling Units . | . . . Scanalyzers . | . . . Garrison Access . | . . . Data Cores Recovered 1 | . 1 . Used 1 | . 1 . Hacking Detections 3 | . 3 . Full Trace Events . | . . . Feedback Events . | . . . Feedback Blocked . | . . . Robot Schematics Acquired . | . . . Robots Built . | . . . Authchips . | . . . Time . | . . . Total Robot Build Rating . | . . . Part Schematics Acquired . | . . . Parts Built . | . . . Authchips . | . . . Time . | . . . Total Part Build Rating . | . . . Parts Repaired . | . . . Time . | . . . Parts Recycled . | . . . Recycled Matter . | . . . Retrieved Matter . | . . . Retrieved Components 9 | . 9 . Parts Scanalyzed . | . . . Part Schematics Acquired . | . . . Parts Damaged . | . . . Bothacking | -11 -10 -10 ------------ Run | Yrd Mat Sub Used RIF Installer . | . . . Robots Hacked . | . . . Non-combat . | . . . Combat . | . . . Robot Hacks Applied . | . . . Relay Couplers Released . | . . . Fabnet Peak Effective % . | . . . Robots Rewired . | . . . Allies Hacked . | . . . Hacks Repelled . | . . . Allies | -11 -10 -10 -------- Run | Yrd Mat Sub Total Allies . | . . . Largest Group . | . . . Highest-Rated Group . | . . . Highest-Rated Ally . | . . . Total Orders . | . . . Ally Attacks . | . . . Total Damage . | . . . Kills . | . . . Allies Corrupted . | . . . Allies Melted . | . . . Intel | -11 -10 -10 ------- Run | Yrd Mat Sub Robot Analysis Total 2 | . 2 . Derelict Logs Recovered 2 | . . 2 Drone Launches . | . . . Drone Recoveries . | . . . Exploration | -11 -10 -10 ------------- Run | Yrd Mat Sub Turns Passed 1929 | 74 959 896 Spaces Moved 1088 | 46 560 482 Core 13 | 13 . . Treads . | . . . Legs 1075 | 33 560 482 Wheels . | . . . Hover . | . . . Flight . | . . . Fastest Speed 50 | 50 120 120 Average Speed 124 | 100 120 132 Slowest Speed 140 | 120 120 140 Overloaded Moves . | . . . Propulsion Burnouts . | . . . Robots Hopped . | . . . Cave-ins Triggered 1 | . . 1 Exploration Rate (%) 22 | 3 39 26 Regions Visited 2 Branch Regions 1 Pre-discovered Areas 2 | . . 2 Known Exits Taken . | . . . Unknown Exits Taken 2 | 1 1 . Scrap Searched 1 | . . 1 Spaces Dug 13 | . . 13 Terrain Destroyed 15 | . . 15 Melee . | . . . Projectile 15 | . . 15 AOE . | . . . Terrain Rammed . | . . . Walls Destroyed . | . . . Machines Disabled . | . . . Actions | -11 -10 -10 --------- Run | Yrd Mat Sub Total 1453 | 65 744 644 Wait 197 | . 100 97 Move 1085 | 45 559 481 Hop . | . . . Pick Up 25 | 9 9 7 Fast Attach 4 | 2 1 1 Attach 6 | 4 1 1 Detach . | . . . Swap 11 | . 3 8 Drop 15 | . 5 10 Fire 109 | 5 65 39 Melee . | . . . Ram . | . . . Kick 1 | . 1 . Crush . | . . . Escape Stasis . | . . . Rewire . | . . . Trap . | . . . Miscellaneous . | . . . Route ------- -11/Scrapyard -10/Materials (discovered 3 exits: [*Mat] / [*Min] / [*Sub]) -10/Subcaves (discovered 2 exits: *Mat x2) History --------- Turn | Location | Event 9 | -11/Scrapyard | Discovered new exit (range 15) 75 | -11/Scrapyard | Entered Materials 150 | -10/Materials | Discovered new exit (range 6) 312 | -10/Materials | Build established: Mutant 447 | -10/Materials | Core integrity fell below 50% 596 | -10/Materials | Discovered new exit (range 7) 786 | -10/Materials | Discovered new exit (range 16) 1034 | -10/Materials | Entered Subcaves 1036 | -10/Subcaves | Learned location of Storage (-9) 1048 | -10/Subcaves | Learned Materials stockpile data 1090 | -10/Subcaves | A swath of the cavern ceiling suddenly collapsed 1141 | -10/Subcaves | Discovered new exit (range 15) 1154 | -10/Subcaves | Learned location of Zion (-6) 1154 | -10/Subcaves | Met a Zionite searching for "candidates" 1400 | -10/Subcaves | Identified exit to Materials 1601 | -10/Subcaves | Shifting Twisted Machinery released Mak. System Restoration Module 1604 | -10/Subcaves | Shifting Twisted Machinery released Riot Gun 1634 | -10/Subcaves | Build established: Scavenger-Mutant 1655 | -10/Subcaves | Discovered exit to Materials (range 9) 1884 | -10/Subcaves | Ambushed by Subdweller buried in earth 1930 | -10/Subcaves | Crushed by falling debris 1930 | -10/Subcaves | Smashed by cave-in Last Messages --------------- Acquired Riot Gun. Acquired 38 matter. Dropped Datajack. Acquired Sub. Optics. EXIT=FOUND: MATERIALS Subatomizers dissect the Datajack. Acquired 10 matter. 2K-S0Y(R): "ARGHSUB!" Seismic Detector destroyed. Riot Gun destroyed. 2K-S0Y(R) destroyed. Acquired 30 matter. The unstable cave ceiling collapses. 13 Matter crushed. The unstable cave ceiling collapses. Crushed by falling debris. Mak. Power Source destroyed. System corrupted by crushing effect (+1). Mak. Leg destroyed. System corrupted by crushing effect (+5). Map ----- +----------------------------------------------------+ | ????????????????????## ##??## #???????????# | | ???????????????##???# ##### #???????????# | | ????????????#### ##?# # ### #???????????# | | ????????????# ###" %# ### #???????????# | | ????????????# ##" ### ##???????????## | | ????????????# """ ### #?????????????" | | ?????????????# " "" #### #?????????????? | | ?????????????# " "" ### #?????????????? | | ?????????????#" " " " ##?????????????? | | ?????????????# " """""" ##??????????????? | | ?????????????#"""""" " ##???????????????? | | ?????????????## " ##????????????????? | | ??????????????# % ##?????????????????? | | ??????????????# " % ###????????????????? | | ??????????????## " [/ #????????????????? | | ???????????????# " & " #????????????????? | | ???????????????# " " # ##????????????????? | | ???????????????## !" #### #?????????????????? | | ????????????????##" "#####?# # #?????????????????? | | ???????????###??#"" "#?????## ##????????????????? | | ???????????# #?## ##?????# # ##???????????????? | | ???????????# ##" ""#?????# # #???????????????? | | ????????????# " ""##????###### #########???##### | | ????????????## " """#????? #???# ## #####% | | ?????????????#"" ""##??##$#???### ##### #### | | ????????????##" """##?#@##?????## ##??# #### #?# | | ????????????#"" #?# &##?????## ##?#### ##?# | | ????????????#" # ###&#&#??????## ##?## ## ### | | ????????????#" ##&##???????## ### #### # | | ????????????#" # #=#[#????????## ## #??# # | | ????????????# ### ## #?????????## # #??## | | ????????????# ##??????????## ##??### | | ????????????### # #????????????## ####?? | | ??????????????## #### #?????????????## # #?? | | ???????????????# ##??###??????????????##= ##?? | | ???????????????######??????????????????????##%##?? | | ????????????????????????????????????????????## #?? | | ?????????????????????????????????????????????## #? | | ???????????????????????????????????????????????##? | | ?????????????????????????????????????????????????? | | ?????????????????????????????????????????????????? | | ?????????????????????????????????????????????????? | | ?????????????????????????????????????????????????? | | ?????????????????????????????????????????????????? | | ?????????????????????????????????????????????????? | | ?????????????????????????????????????????????????? | | ?????????????????????????????????????????????????? | | ?????????????????????????????????????????????????? | | ?????????????????????????????????????????????????? | | ?????????????????????????????????????????????????? | +----------------------------------------------------+ Best States ------------- Heat Dissipation 25 Energy Generation 15 Energy Capacity 170 Matter Stores 300 Matter Capacity 300 Sight Range 16 Terrain Scan Density 10 Evasion (%) 55 Item Schematics ----------------- None Robot Schematics ------------------ None Fabricated ------------ Nothing Alien Tech Used ----------------- None Achievements -------------- None Challenges ------------ None Game ------ Seed CentriumLightpackExtractor Manual? 0 Play Time 00:13:28 Cumulative 74.0 hours Start 2024.11.05 @ 03:08:23 End 2024.11.05 @ 03:31:40 Sessions 1 Manual Loads 0 Difficulty Rogue Special Mode None Game No. 91 Rogue 91 Adventurer 0 Explorer 0 Win Type - Total 1 Types 1/0/0/0/0/0/0/0/0 Lore% 51 Gallery% 53 Achievement% 50 Wizard Run 0 Options --------- Layout 1 ASCII 0 Keyboard 0 Movement Mouse Keybinds 0 Fullscreen 1 Font 32/SmallcapsGlow Map View 50x35 Zoom Use 0% Tactical HUD 0 Map Filters NONE Filters NONE Steam 1 RUN: d480adf9-ebd5-4093-8416-57c02a910e82